fUSD/lending_fUSD_20240609
["ID","MTS","AMOUNT","RATE_DAILY","PERIOD"]
[328867696,1717925145199,4000.0,0.00013478,2]
[328867697,1717925145225,4000.0,0.00013478,2]
[328867698,1717925145251,2770.38548298,0.00013478,2]
[328867699,1717925145278,4000.0,0.00013478,2]
[328867700,1717925145303,3285.10283658,0.00013478,2]
[328867701,1717925151704,155.0,0.00013478,2]
[328867702,1717925152082,559.89716342,0.00013208,2]
[328867703,1717925152107,2052.42483466,0.00013208,2]
[328867704,1717925153158,155.0,0.00013478,2]
[328867705,1717925153745,289.87928968,0.00013478,2]
[328867706,1717925155605,299.71922881,0.00013478,2]
[328867707,1717925156213,1202.97664685,0.00013478,2]
[328867708,1717925156243,4000.0,0.00013478,2]
[328867709,1717925156270,4000.0,0.00013478,2]
[328867710,1717925156296,4000.0,0.00013478,2]
[328867711,1717925156321,4000.0,0.00013478,2]
[328867713,1717925229163,-295.79518933,0.00013086,2]
[328867714,1717925229187,-282.90771875,0.00013086,2]
[328867715,1717925229211,-186.03117519,0.00013087,2]
[328867716,1717925229234,-3211.69008116,0.00013088,2]
[328867717,1717925229257,-150.0,0.00013206,2]
[328867718,1717925229280,-150.0,0.00013206,2]
[328867719,1717925229303,-1625.08193792,0.00013207,2]
[328867720,1717925229327,-3100.39153479,0.00013207,2]
[328867721,1717925229350,-1228.83034579,0.00013208,2]
[328867722,1717925229373,-195.91943218,0.00013361,2]
[328867723,1717925229397,-195.91943217,0.0001337,2]
[328867724,1717925229420,-195.91943217,0.00013378,2]
[328867725,1717925229442,-5800.0,0.00013461,2]
[328867726,1717925229467,-30067.02329108,0.00013478,2]
[328867727,1717925348146,-332.64543259,0.00013378,2]
[328867728,1717925348176,-664.0,0.00013474,2]
[328867729,1717925348203,-1215.7093737,0.00013475,2]
[328867730,1717925348228,-296.63454639,0.00013476,2]
[328867731,1717925348253,-204.51341886,0.00013476,2]
[328867732,1717925348277,-186.65621565,0.00013477,2]
[328867733,1717925348301,-3099.35721507,0.00013477,2]
[328867734,1717925348327,-1493.36436777,0.00013477,2]
[328867735,1717925348354,-70163.31268809,0.00013478,2]
[328867736,1717925361125,-246.30615944,0.00013378,2]
[328867737,1717925370128,-1337.55839127,0.00013477,2]
[328867738,1717925370155,-264278.71160873,0.00013478,2]
[328867739,1717925377172,1094.1127766,0.00013377,2]
[328867742,1717925418753,2847.62928445,0.00013377,2]
[328867743,1717925433471,-27826.70657209,0.00013377,2]
[328867759,1717925441472,-2138.67178464,0.00013377,2]
[328867760,1717925441486,-83690.70732046,0.00013377,2]
[328867769,1717925443705,-344.447979,0.00013377,2]
[328867781,1717925443844,-1913.60066779,0.00013377,2]
[328867865,1717925447339,-2448.97318394,0.00013377,2]
[328867866,1717925447355,-15397.53785678,0.00013377,2]
[328867867,1717925447374,-629.6189662,0.00013377,2]
[328867868,1717925447389,-795.17610171,0.00013377,2]
[328867869,1717925447405,-8571.89705668,0.00013377,2]
[328867870,1717925447420,-358.54738649,0.00013377,2]
[328867871,1717925447437,-517.70657347,0.00013377,2]
[328867872,1717925447679,-400358.9640466,0.00013377,2]
[328867873,1717925447691,-20268.82653709,0.00013377,2]
[328867874,1717925447702,-289.87928968,0.00013377,2]
[328867875,1717925447714,-299.71922881,0.00013377,2]
[328867876,1717925447725,-150.0,0.00013477,2]
[328867877,1717925447738,-233.82973077,0.00013478,2]
[328867878,1717925447749,-155.56010455,0.00013478,2]
[328867879,1717925447761,-150.0,0.00013478,2]
[328867880,1717925447773,-150.0,0.00013478,2]
[328867881,1717925447786,-150.0,0.00013478,2]
[328867882,1717925447798,-150.0,0.00013478,2]
[328867883,1717925447810,-150.0,0.00013478,2]
[328867884,1717925447825,-150.0,0.00013478,2]
[328867885,1717925447838,-150.0,0.00013478,2]
[328867886,1717925447849,-150.0,0.00013478,2]
[328867888,1717925447859,-150.0,0.00013478,2]
[328867890,1717925447870,-150.0,0.00013478,2]
[328867891,1717925447881,-150.0,0.00013478,2]
[328867892,1717925447891,-150.0,0.00013478,2]
[328867893,1717925447902,-150.0,0.00013478,2]
[328867894,1717925447913,-150.73630364,0.00013478,2]
[328867895,1717925447925,-409.27952397,0.000139,2]
[328867896,1717925447938,-600.7,0.00014084,2]
[328867897,1717925447950,-16148.3648,0.00014638,2]
[328867898,1717925447962,-210.0,0.00014825,2]
[328867900,1717925447975,-681.71674,0.0001485,2]
[328867902,1717925447986,-155.26133571,0.00014898,2]
[328867904,1717925447997,-88262.866,0.000149,2]
[328867906,1717925448008,-400.0,0.000149,5]
[328867908,1717925448019,-208.76304207,0.00014999,2]
[328867910,1717925448031,-169863.70536364,0.00015,2]
[328867911,1717925448042,-1123.27668844,0.00015,2]
[328867912,1717925448058,-2000.0,0.00015,2]
[328867913,1717925448070,-200.0,0.00015,2]
[328867914,1717925448081,-500.0,0.00015,2]
[328867915,1717925448094,-500.0,0.00015,2]
[328867916,1717925448106,-798.0,0.00015,2]
[328867917,1717925448118,-49126.22077566,0.00015088,2]
[328867918,1717925448133,-200.0,0.0001515,2]
[328867919,1717925448145,-23900.0,0.00015629,2]
[328867920,1717925448157,-246.30615938,0.00015719,2]
[328867921,1717925448170,-293.0,0.00016307,2]
[328867922,1717925448183,-151.0,0.00016348,2]
[328867923,1717925448194,-600.7,0.00016348,2]
[328867924,1717925448207,-250.0,0.00016413,2]
[328867925,1717925448220,-2674.44,0.00016438,2]
[328867926,1717925448232,-600.08,0.00016687,2]
[328867927,1717925448245,-152.762038,0.00016687,2]
[328867928,1717925448257,-150.0,0.00017205,2]
[328867929,1717925448268,-3865.04449542,0.00017225,2]
[328867930,1717925448281,-2017.42,0.00017225,2]
[328867931,1717925448293,-455.36630055,0.0001726,2]
[328867932,1717925448305,-681.71674,0.0001735,2]
[328867933,1717925448316,-246.30615938,0.00018059,2]
[328867934,1717925448328,-600.7,0.00018612,2]
[328867935,1717925448341,-1000.0,0.00018706,2]
[328867936,1717925448353,-476.96839323,0.00019178,2]
[328867937,1717925448364,-500.0,0.00019178,2]
[328867938,1717925448376,-282.6111587,0.00019178,2]
[328867939,1717925448389,-500.0,0.00019178,2]
[328867940,1717925448401,-456.56785661,0.00019178,2]
[328867941,1717925448412,-500.0,0.00019178,2]
[328867942,1717925448424,-600.08,0.00019426,2]
[328867943,1717925448436,-3153.91,0.00019796,2]
[328867944,1717925448448,-155.83005,0.00019796,2]
[328867945,1717925448459,-154.057879,0.00019796,2]
[328867946,1717925448471,-155.403827,0.00019796,2]
[328867947,1717925448483,-681.71675,0.0001985,2]
[328867948,1717925448495,-460.57,0.00019997,2]
[328867949,1717925448506,-226.67450997,0.000201,2]
[328867950,1717925448518,-250.0,0.00020118,2]
[328867951,1717925448529,-246.30615938,0.000204,2]
[328867952,1717925448541,-600.7,0.00020876,2]
[328867953,1717925448553,-1000.0,0.00021044,2]
[328867954,1717925448565,-286.59,0.00021918,2]
[328867955,1717925448576,-250.0,0.00021918,2]
[328867956,1717925448587,-600.08,0.00022166,2]
[328867957,1717925448599,-681.71674,0.0002235,2]
[328867958,1717925448611,-246.30615938,0.00022741,2]
[328867959,1717925448623,-40060.15258303,0.00023,2]
[328867960,1717925448634,-161.455791,0.00023,7]
[328867961,1717925448645,-600.7,0.0002314,2]
[328867962,1717925448657,-1714.0,0.000233,2]
[328867963,1717925448668,-549.0,0.000233,2]
[328867964,1717925448679,-1367.0,0.00023313,2]
[328867965,1717925448691,-12667.701,0.00023313,2]
[328867966,1717925448702,-211.0,0.00023313,2]
[328867967,1717925448713,-978.0,0.00023313,2]
[328867968,1717925448725,-1000.0,0.00023382,2]
[328867969,1717925448749,-110664.51816965,0.00024,3]
[328867970,1717925448764,-13921.68378196,0.00024,15]
[328867971,1717925448778,-152.042745,0.00024,7]
[328867972,1717925448792,-152.786885,0.00024,7]
[328867973,1717925448805,-152.473571,0.00024,7]
[328867974,1717925448819,-152.103664,0.00024,7]
[328867975,1717925448831,-164.94,0.00024384,2]
[328867976,1717925448844,-239.98,0.00024384,2]
[328867977,1717925448859,-157.19,0.00024384,2]
[328867978,1717925448872,-1787.69738111,0.00024798,2]
[328867979,1717925448884,-1787.69738109,0.00024798,2]
[328867980,1717925448898,-1787.69738109,0.00024798,2]
[328867981,1717925448911,-1787.69738109,0.00024798,2]
[328867982,1717925448924,-1787.69738109,0.00024798,2]
[328867983,1717925448938,-1787.69738109,0.00024798,2]
[328867984,1717925448951,-1787.69738109,0.00024798,2]
[328867985,1717925448965,-520.35601533,0.00024799,2]
[328867986,1717925448977,-520.35601526,0.00024799,2]
[328867987,1717925448989,-520.35601526,0.00024799,2]
[328867988,1717925449003,-520.35601526,0.00024799,2]
[328867989,1717925449015,-520.35601526,0.00024799,2]
[328867990,1717925449027,-520.35601526,0.00024799,2]
[328867991,1717925449039,-520.35601526,0.00024799,2]
[328867992,1717925449052,-681.71675,0.0002485,2]
[328867993,1717925449064,-484.774,0.00024874,2]
[328867994,1717925449077,-1547.275,0.00024874,2]
[328867995,1717925449089,-165.0,0.00024874,2]
[328867996,1717925449101,-2405.0,0.00024874,2]
[328867997,1717925449115,-808.0,0.00024874,2]
[328867998,1717925449128,-446.0,0.00024874,2]
[328867999,1717925449146,-151.063,0.00024874,2]
[328868000,1717925449157,-150.0,0.00024874,2]
[328868001,1717925449168,-1304.0,0.00024874,2]
[328868002,1717925449183,-3175.0,0.00024874,2]
[328868003,1717925449194,-545.0,0.00024874,2]
[328868004,1717925449398,-290.0,0.00024874,2]
[328868005,1717925449419,-410.0,0.00024874,2]
[328868006,1717925449433,-1194.0,0.00024874,2]
[328868007,1717925449443,-5783.0,0.00024874,2]
[328868008,1717925449453,-5154.0,0.00024874,2]
[328868009,1717925449464,-151.0,0.00024874,7]
[328868010,1717925449474,-151.0,0.00024874,7]
[328868011,1717925449484,-900.0,0.000249,9]
[328868012,1717925449494,-153.61,0.0002499,2]
[328868013,1717925449504,-150.0,0.00025,12]
[328868014,1717925449513,-49994.04714092,0.00025,2]
[328868015,1717925449523,-1250.0,0.00025,2]
[328868016,1717925449533,-1203.42195458,0.00025,2]
[328868017,1717925449543,-151.0,0.00025,7]
[328868018,1717925449552,-151.0,0.00025,7]
[328868019,1717925449562,-246.30615938,0.00025082,2]
[328868020,1717925449572,-11734.0,0.000251,5]
[328868021,1717925449582,-600.7,0.00025404,2]
[328868022,1717925449591,-1000.0,0.0002572,2]
[328868023,1717925449601,-192.02671459,0.0002591,2]
[328868024,1717925449611,-23534.25625495,0.00026,5]
[328868025,1717925449620,-155.15244304,0.00026028,2]
[328868026,1717925449629,-1000.0,0.000262,2]
[328868027,1717925449639,-896.0,0.000262,2]
[328868028,1717925449649,-354.0,0.000262,2]
[328868029,1717925449659,-1787.69738109,0.00026228,2]
[328868030,1717925449669,-520.35601526,0.00026228,2]
[328868031,1717925449680,-160.12230011,0.00026258,2]
[328868032,1717925449690,-152.0,0.00026289,3]
[328868033,1717925449699,-976.0,0.00026313,2]
[328868034,1717925449711,-160.12230011,0.00026457,2]
[328868035,1717925449721,-154.86591407,0.00026592,2]
[328868036,1717925449731,-150.0,0.0002675,2]
[328868037,1717925449741,-150.0,0.00026769,2]
[328868038,1717925449755,-157.14381714,0.00026931,2]
[328868039,1717925449765,-150.0,0.00026957,2]
[328868040,1717925449775,-150.0,0.00026959,2]
[328868041,1717925449786,-17796.04120922,0.00027,2]
[328868042,1717925449797,-1300.0,0.00027,2]
[328868043,1717925449807,-200.0,0.00027,2]
[328868044,1717925449818,-151.0,0.00027,7]
[328868045,1717925449830,-151.0,0.00027,7]
[328868046,1717925449841,-150.0,0.00027014,2]
[328868047,1717925449851,-156.26142329,0.00027056,2]
[328868048,1717925449860,-160.12230011,0.00027095,2]
[328868049,1717925449871,-150.0,0.00027122,2]
[328868050,1717925449881,-150.0,0.0002714,2]
[328868051,1717925449891,-156.26142329,0.00027181,2]
[328868052,1717925449902,-150.0,0.00027334,2]
[328868053,1717925449914,-681.71674,0.0002735,2]
[328868054,1717925449925,-156.26142329,0.00027364,2]
[328868055,1717925449936,-802.23488795,0.0002739,2]
[328868056,1717925449946,-239.75282357,0.00027397,2]
[328868057,1717925449958,-150.0,0.00027397,2]
[328868058,1717925449969,-1000.0,0.000274,2]
[328868059,1717925449980,-246.30615938,0.00027422,2]
[328868060,1717925449989,-150.0,0.00027466,2]
[328868061,1717925449999,-150.0,0.00027499,2]
[328868062,1717925450009,-150.0,0.00027535,2]
[328868063,1717925450018,-154.63818244,0.00027575,2]
[328868064,1717925450029,-165.9373607,0.0002766,2]
[328868065,1717925450038,-600.7,0.00027668,2]
[328868066,1717925450048,-154.88680112,0.00027743,2]
[328868067,1717925450058,-150.0,0.00027772,2]
[328868068,1717925450068,-216.754837,0.0002779,2]
[328868069,1717925450078,-365.862774,0.0002779,2]
[328868070,1717925450088,-425.449546,0.0002779,2]
[328868071,1717925450098,-216.754838,0.0002779,2]
[328868072,1717925450108,-309.89491,0.0002779,2]
[328868073,1717925450119,-231.197202,0.0002779,2]
[328868074,1717925450131,-152.68672289,0.00027813,2]
[328868075,1717925450142,-154.63818244,0.00027816,2]
[328868076,1717925450152,-151.04153222,0.00027834,2]
[328868077,1717925450162,-150.0,0.0002784,2]
[328868078,1717925450175,-150.0,0.0002786,2]
[328868079,1717925450186,-164.0,0.00027874,2]
[328868080,1717925450196,-2402.0,0.00027874,2]
[328868081,1717925450209,-808.0,0.00027874,2]
[328868082,1717925450220,-446.0,0.00027874,2]
[328868083,1717925450231,-150.0,0.00027874,2]
[328868084,1717925450241,-1303.0,0.00027874,2]
[328868085,1717925450252,-3169.0,0.00027874,2]
[328868086,1717925450262,-358.0,0.00027874,2]
[328868087,1717925450273,-1194.0,0.00027874,2]
[328868088,1717925450283,-5774.0,0.00027874,2]
[328868089,1717925450295,-5148.0,0.00027874,2]
[328868090,1717925450305,-152.0,0.00027887,4]
[328868091,1717925450316,-150.0,0.00027894,2]
[328868092,1717925450326,-266.10450733,0.000279,2]
[328868093,1717925450337,-154.86591407,0.00027904,2]
[328868094,1717925450347,-150.0,0.00027913,2]
[328868095,1717925450357,-300.0,0.00027928,2]
[328868096,1717925450367,-150.0,0.00027986,2]
[328868097,1717925450377,-460.57,0.00027996,2]
[328868098,1717925450386,-165.0,0.00028,18]
[328868099,1717925450396,-2238.0,0.00028,3]
[328868100,1717925450405,-150.0,0.00028058,2]
[328868101,1717925450415,-1000.0,0.00028058,2]
[328868102,1717925450425,-1787.69738109,0.00028064,2]
[328868103,1717925450435,-520.35601526,0.00028064,2]
[328868104,1717925450445,-169.52503523,0.00028082,2]
[328868105,1717925450455,-150.0,0.00028095,2]
[328868106,1717925450464,-150.0,0.00028118,2]
[328868107,1717925450475,-150.0,0.0002813,2]
[328868108,1717925450484,-216.754837,0.00028138,2]
[328868109,1717925450494,-365.862774,0.00028138,2]
[328868110,1717925450504,-425.449546,0.00028138,2]
[328868111,1717925450514,-216.754838,0.00028138,2]
[328868112,1717925450524,-309.89491,0.00028138,2]
[328868113,1717925450534,-231.197202,0.00028138,2]
[328868114,1717925450544,-150.0,0.00028141,2]
[328868115,1717925450554,-150.0,0.0002815,2]
[328868116,1717925450564,-150.0,0.00028152,2]
[328868117,1717925450574,-150.0,0.00028173,2]
[328868118,1717925450584,-154.63818244,0.00028178,2]
[328868119,1717925450594,-155.15244304,0.00028188,2]
[328868120,1717925450604,-156.9391148,0.000282,2]
[328868121,1717925450613,-150.0,0.0002822,2]
[328868122,1717925450623,-150.0,0.00028221,2]
[328868123,1717925450633,-150.0,0.00028222,2]
[328868124,1717925450643,-500.0,0.00028223,2]
[328868125,1717925450653,-500.0,0.00028223,2]
[328868126,1717925450663,-527.0,0.00028223,2]
[328868127,1717925450673,-156.26142329,0.00028227,2]
[328868128,1717925450682,-150.0,0.0002823,2]
[328868129,1717925450693,-471.23889786,0.00028247,2]
[328868130,1717925450702,-154.88680113,0.00028262,2]
[328868131,1717925450713,-150.0,0.00028293,2]
[328868132,1717925450723,-150.0,0.00028309,2]
[328868133,1717925450733,-150.0,0.00028309,2]
[328868134,1717925450743,-150.0,0.00028314,2]
[328868135,1717925450752,-150.0,0.00028334,2]
[328868136,1717925450762,-302.26021311,0.00028351,2]
[328868137,1717925450772,-150.0,0.00028367,2]
[328868138,1717925450782,-500.0,0.0002837,2]
[328868139,1717925450792,-500.0,0.00028371,2]
[328868140,1717925450802,-1500.0,0.00028374,2]
[328868141,1717925450812,-150.0,0.00028381,2]
[328868142,1717925450822,-150.0,0.00028391,2]
[328868143,1717925450832,-154.63818244,0.00028399,2]
[328868144,1717925450842,-150.0,0.00028402,2]
[328868145,1717925450852,-150.0,0.0002841,2]
[328868146,1717925450862,-300.0,0.00028414,2]
[328868147,1717925450872,-150.0,0.00028435,2]
[328868148,1717925450882,-150.0,0.00028437,2]
[328868149,1717925450892,-1500.0,0.00028441,2]
[328868150,1717925450902,-180.48587108,0.0002845,2]
[328868151,1717925450912,-150.0,0.00028454,2]
[328868152,1717925450922,-150.0,0.00028456,2]
[328868153,1717925450932,-1500.0,0.00028471,2]
[328868154,1717925450942,-150.0,0.00028475,2]
[328868155,1717925450953,-216.754837,0.00028485,2]
[328868156,1717925450963,-365.862774,0.00028485,2]
[328868157,1717925450973,-425.449546,0.00028485,2]
[328868158,1717925450983,-216.754838,0.00028485,2]
[328868159,1717925450993,-309.89491,0.00028485,2]
[328868160,1717925451004,-231.197202,0.00028485,2]
[328868161,1717925451014,-500.0,0.00028493,4]
[328868162,1717925451024,-500.0,0.00028493,4]
[328868163,1717925451035,-500.0,0.00028493,4]
[328868164,1717925451045,-500.0,0.00028493,4]
[328868165,1717925451055,-198.7148192,0.00028493,4]
[328868166,1717925451066,-500.0,0.00028498,2]
[328868167,1717925451075,-500.0,0.00028498,2]
[328868168,1717925451085,-500.0,0.00028498,2]
[328868169,1717925451096,-500.0,0.00028498,2]
[328868170,1717925451106,-500.0,0.00028498,2]
[328868171,1717925451116,-500.0,0.00028498,2]
[328868172,1717925451126,-500.0,0.00028498,2]
[328868173,1717925451141,-500.0,0.00028498,2]
[328868174,1717925451151,-500.0,0.00028498,2]
[328868175,1717925451161,-500.0,0.00028498,2]
[328868176,1717925451171,-500.0,0.00028498,2]
[328868177,1717925451181,-500.0,0.00028498,2]
[328868178,1717925451191,-500.0,0.00028498,2]
[328868179,1717925451202,-500.0,0.00028498,2]
[328868180,1717925451213,-500.0,0.00028498,2]
[328868181,1717925451223,-500.0,0.00028498,2]
[328868182,1717925451233,-500.0,0.00028498,2]
[328868183,1717925451243,-500.0,0.00028498,2]
[328868184,1717925451253,-500.0,0.00028498,2]
[328868185,1717925451263,-500.0,0.00028498,2]
[328868186,1717925451273,-500.0,0.00028498,2]
[328868187,1717925451284,-500.0,0.00028498,2]
[328868188,1717925451294,-500.0,0.00028498,2]
[328868189,1717925451304,-500.0,0.00028498,2]
[328868190,1717925451314,-500.0,0.00028498,2]
[328868191,1717925451324,-500.0,0.00028498,2]
[328868192,1717925451334,-500.0,0.00028498,2]
[328868193,1717925451344,-500.0,0.00028498,2]
[328868194,1717925451354,-500.0,0.00028498,2]
[328868195,1717925451364,-500.0,0.00028498,2]
[328868196,1717925451374,-500.0,0.00028498,2]
[328868197,1717925451384,-500.0,0.00028498,2]
[328868198,1717925451394,-500.0,0.00028498,2]
[328868199,1717925451404,-500.0,0.00028498,2]
[328868200,1717925451414,-500.0,0.00028498,2]
[328868201,1717925451424,-500.0,0.00028498,2]
[328868202,1717925451434,-500.0,0.00028498,2]
[328868203,1717925451445,-500.0,0.00028498,2]
[328868204,1717925451454,-500.0,0.00028498,2]
[328868205,1717925451465,-500.0,0.00028498,2]
[328868206,1717925451475,-500.0,0.00028498,2]
[328868207,1717925451485,-500.0,0.00028498,2]
[328868208,1717925451495,-500.0,0.00028498,2]
[328868209,1717925451505,-500.0,0.00028498,2]
[328868210,1717925451515,-500.0,0.00028498,2]
[328868211,1717925451525,-500.0,0.00028498,2]
[328868212,1717925451536,-500.0,0.00028498,2]
[328868213,1717925451547,-500.0,0.00028498,2]
[328868214,1717925451557,-500.0,0.00028498,2]
[328868215,1717925451567,-500.0,0.00028498,2]
[328868216,1717925451578,-500.0,0.00028498,2]
[328868217,1717925451587,-500.0,0.00028498,2]
[328868218,1717925451598,-500.0,0.00028498,2]
[328868219,1717925451608,-500.0,0.00028498,2]
[328868220,1717925451618,-500.0,0.00028498,2]
[328868221,1717925451628,-500.0,0.00028498,2]
[328868222,1717925451639,-500.0,0.00028498,2]
[328868223,1717925451649,-500.0,0.00028498,2]
[328868224,1717925451659,-500.0,0.00028498,2]
[328868225,1717925451669,-500.0,0.00028498,2]
[328868226,1717925451679,-500.0,0.00028498,2]
[328868227,1717925451691,-500.0,0.00028498,2]
[328868228,1717925451701,-500.0,0.00028498,2]
[328868229,1717925451711,-500.0,0.00028498,2]
[328868230,1717925451722,-500.0,0.00028498,2]
[328868231,1717925451733,-500.0,0.00028498,2]
[328868232,1717925451743,-500.0,0.00028498,2]
[328868233,1717925451753,-156.6398693,0.000285,7]
[328868234,1717925451763,-3364.95,0.000285,2]
[328868235,1717925451773,-151.0,0.000285,7]
[328868236,1717925451783,-151.0,0.000285,7]
[328868237,1717925451793,-1300.0,0.000285,10]
[328868238,1717925451802,-150.0,0.00028506,2]
[328868239,1717925451811,-150.0,0.00028512,2]
[328868240,1717925451821,-155.82683329,0.00028514,2]
[328868241,1717925451831,-306.3088575,0.00028519,2]
[328868242,1717925451840,-150.0,0.00028524,2]
[328868243,1717925451851,-150.0,0.00028524,2]
[328868244,1717925451861,-150.0,0.00028527,2]
[328868245,1717925451871,-156.26142329,0.00028529,2]
[328868246,1717925451881,-154.63818244,0.00028534,2]
[328868247,1717925451891,-300.0,0.00028544,2]
[328868248,1717925451901,-150.0,0.00028545,2]
[328868249,1717925451911,-150.0,0.00028556,2]
[328868250,1717925451921,-1500.0,0.00028574,2]
[328868251,1717925451932,-150.0,0.00028579,2]
[328868252,1717925451943,-167.00314077,0.0002858,2]
[328868253,1717925451953,-172.03387253,0.0002858,2]
[328868254,1717925451963,-5583.88297426,0.0002858,2]
[328868255,1717925451973,-150.0,0.0002858,2]
[328868256,1717925451985,-200.22522866,0.0002858,2]
[328868257,1717925451995,-601.61474654,0.0002858,2]
[328868258,1717925452006,-150.0,0.00028583,2]
[328868259,1717925452015,-3861.26442007,0.00028585,2]
[328868260,1717925452025,-1500.0,0.00028591,2]
[328868261,1717925452036,-31556.83215655,0.00028598,2]
[328868262,1717925452046,-203.30376107,0.00028599,2]
[328868263,1717925452056,-1874.61884039,0.00028599,2]
[328868264,1717925452066,-151.0,0.00028599,7]
[328868265,1717925452077,-151.0,0.00028599,7]
[328868266,1717925452087,-18265.92718328,0.000286,2]
[328868267,1717925452097,-345.0,0.000286,2]
[328868268,1717925452108,-151.0,0.000286,7]
[328868269,1717925452118,-151.0,0.000286,7]
[328868270,1717925452131,-1800.0,0.000286,10]
[328868271,1717925452142,-150.0,0.000286,5]
[328868272,1717925452153,-150.0,0.00028613,2]
[328868273,1717925452164,-150.0,0.00028615,2]
[328868274,1717925452175,-1500.0,0.00028634,2]
[328868275,1717925452185,-150.0,0.00028636,2]
[328868276,1717925452195,-150.0,0.00028648,2]
[328868277,1717925452206,-150.0,0.00028649,2]
[328868278,1717925452218,-303.66303113,0.0002865,2]
[328868279,1717925452228,-150.0,0.00028651,2]
[328868280,1717925452238,-150.0,0.00028658,7]
[328868281,1717925452248,-150.0,0.00028658,7]
[328868282,1717925452258,-150.0,0.00028658,7]
[328868283,1717925452268,-150.0,0.00028658,7]
[328868284,1717925452278,-150.0,0.00028658,7]
[328868285,1717925452288,-150.0,0.00028658,7]
[328868286,1717925452298,-150.0,0.00028658,7]
[328868287,1717925452309,-153.61,0.0002867,2]
[328868288,1717925452319,-435.85096148,0.00028678,2]
[328868289,1717925452329,-144421.06728587,0.0002868,13]
[328868290,1717925452339,-151.0,0.0002868,7]
[328868291,1717925452349,-151.0,0.0002868,7]
[328868292,1717925452359,-151.0,0.0002868,7]
[328868293,1717925452369,-151.0,0.0002868,7]
[328868294,1717925452379,-267.064136,0.0002868,7]
[328868295,1717925452389,-150.0,0.0002868,2]
[328868296,1717925452399,-1471445.90574122,0.0002868,2]
[328868297,1717925452409,-86369.10198989,0.0002868,2]
[328868298,1717925452418,-100379.0,0.00028685,4]
[328868299,1717925452428,-1136.0,0.00028685,4]
[328868300,1717925452438,-86920.0,0.00028685,4]
[328868301,1717925452448,-153613.0,0.00028685,4]
[328868302,1717925452458,-151.0,0.00028685,7]
[328868303,1717925452468,-150.0,0.00028689,2]
[328868304,1717925452478,-150.0,0.00028689,2]
[328868305,1717925452488,-150.0,0.00028689,2]
[328868306,1717925452497,-150.0,0.00028689,2]
[328868307,1717925452507,-150.0,0.00028689,2]
[328868308,1717925452517,-150.0,0.00028689,2]
[328868309,1717925452526,-150.0,0.00028689,2]
[328868310,1717925452537,-199.38694,0.00028689,2]
[328868311,1717925452547,-150.0,0.00028691,2]
[328868312,1717925452557,-150.0,0.00028694,2]
[328868313,1717925452567,-5583.8829742,0.000287,2]
[328868314,1717925452577,-2200.0,0.000287,10]
[328868315,1717925452587,-1500.0,0.00028703,2]
[328868316,1717925452602,-150.0,0.00028705,7]
[328868317,1717925452612,-150.0,0.00028706,2]
[328868318,1717925452622,-150.0,0.00028711,7]
[328868319,1717925452632,-300.0,0.00028713,2]
[328868320,1717925452642,-1500.0,0.00028715,2]
[328868321,1717925452652,-150.0,0.00028716,7]
[328868322,1717925452663,-150.0,0.00028735,2]
[328868323,1717925452674,-150.0,0.0002874,2]